{"text_format":"3","workbook":"xlsx","n_sheets":2,"sheets":["Sheet1","Sheet2"],"not_rendered":{"defined_names":3},"read":"whole","date_system":"1900"}

{"sheet":"Sheet1","index":0,"n_rows":229,"n_cols":10,"rows_kept":229,"merged":[[0,0,0,6],[2,0,2,9],[4,0,4,9],[228,0,228,4]]}
["FAKULTET PROMETNIH ZNANOSTI",{"$nulls":8},"Datum ispisa: 20.02.2026"]
[]
["Izvješće o isplatama - po Naputku"]
[]
["Godina: 2026. Datum dokumenta: od 01.01.2026 do 31.01.2026. Konto izvršenja: od 3 do 59. Ovlaštenja:"]
["Redni broj","Naziv primatelja","OIB","Sjedište (mjesto i adresa)","Iznos","Valuta","Godina i mjesec","Vrsta rashoda","Naziv konta","Naziv isplatitelja"]
[{"$f":"ROW(A1)","v":{"v":1,"d":"1."}},"SGM INFORMATIKA D.O.O.","09168707993","GRGE NOVAKA 22A, Split",{"v":1770,"d":"1,770.00"},"EUR","2026/1","4221","Uredska oprema i namještaj","FAKULTET PROMETNIH ZNANOSTI"]
[{"$f":"ROW(A2)","v":{"v":2,"d":"2."}},"STUDENTSKI CENTAR SPLIT","25975412650","CVITE FISKOVIĆA 3,, Split",{"v":3195.13,"d":"3,195.13"},"EUR","2026/1","3293","Reprezentacija","FAKULTET PROMETNIH ZNANOSTI"]
[{"v":3,"d":"3."},"INA INDUSTRIJA NAFTE D.D.","27759560625","AVENIJA V.HOLJEVCA 10,, Zagreb",{"v":17.2,"d":"17.20"},"EUR","2026/1","3211","Službena putovanja","FAKULTET PROMETNIH ZNANOSTI"]
[{"v":4,"d":"4."},"INA INDUSTRIJA NAFTE D.D.","27759560625","AVENIJA V.HOLJEVCA 10,, Zagreb",50.05,"EUR","2026/1","3221","Uredski materijal i ostali materijalni rashodi","FAKULTET PROMETNIH ZNANOSTI"]
[{"v":5,"d":"5."},"INA INDUSTRIJA NAFTE D.D.","27759560625","AVENIJA V.HOLJEVCA 10,, Zagreb",{"v":32835.24,"d":"32,835.24"},"EUR","2026/1","3223","Energija","FAKULTET PROMETNIH ZNANOSTI"]
[{"v":6,"d":"6."},"\"SAMOIZBOR\"","60524641367","MAGISTRATSKA 12, KRAPINA",503.34,"EUR","2026/1","3221","Uredski materijal i ostali materijalni rashodi","FAKULTET PROMETNIH ZNANOSTI"]
[{"v":7,"d":"7."},"HUP-ZAGREB D.D. HOTEL INTERNATIONAL","66859264899","TRG KREŠIMIRA ĆOSIĆA 9, ZAGREB",{"v":1651.6,"d":"1,651.60"},"EUR","2026/1","3235","Zakupnine i najamnine","FAKULTET PROMETNIH ZNANOSTI"]
[{"v":8,"d":"8."},"STEMWISE D.O.O.","75697521276","GRGE TUŠKANA 37, ZAGREB",{"v":787.5,"d":"787.50"},"EUR","2026/1","3237","Intelektualne i osobne usluge","FAKULTET PROMETNIH ZNANOSTI"]
[{"v":9,"d":"9."},"Živa voda d.o.o.","86255713939","Karlovačka cesta 92 10020, Zagreb",404.86,"EUR","2026/1","3234","Komunalne usluge","FAKULTET PROMETNIH ZNANOSTI"]
[{"v":10,"d":"10."},"COMBIS D.O.O.","91678676896","RADNIČKA 21, ZAGREB",{"v":637.5,"d":"637.50"},"EUR","2026/1","3235","Zakupnine i najamnine","FAKULTET PROMETNIH ZNANOSTI"]
[{"v":11,"d":"11."},"CLOUDFLARE,INC","n.p.","101 TOWNSEND STREET, SAN FRANCISCO,CALIFORNIA 94107",212.77,"EUR","2026/1","3221","Uredski materijal i ostali materijalni rashodi","FAKULTET PROMETNIH ZNANOSTI"]
[{"v":12,"d":"12."},"ETOILE 401 SAS","n.p.","142 AVENUE PAUL SANTY, LYON 69008",{"v":359.1,"d":"359.10"},"EUR","2026/1","3221","Uredski materijal i ostali materijalni rashodi","FAKULTET PROMETNIH ZNANOSTI"]
[{"v":13,"d":"13."},"OPENAL IRELAND LIMITED","n.p.","117-126 SHERIFF STREET UPPER, DUBLIN",{"v":18.4,"d":"18.40"},"EUR","2026/1","3235","Zakupnine i najamnine","FAKULTET PROMETNIH ZNANOSTI"]
[{"v":14,"d":"14."},"OPENAL, LLC","n.p.","548 MARKET STREET PMB 97273, SAN FRANCISCO",924.68,"EUR","2026/1","3235","Zakupnine i najamnine","FAKULTET PROMETNIH ZNANOSTI"]
[{"v":15,"d":"15."},"OVERLEAF","n.p.","6 BRISET STREET, LONDON",{"v":179,"d":"179.00"},"EUR","2026/1","3235","Zakupnine i najamnine","FAKULTET PROMETNIH ZNANOSTI"]
[{"v":16,"d":"16."},"REMARKABLE OPERATIONS B.V.","n.p.","ZUIDPLEIN 116, AMSTERDAM",{"v":1025.6,"d":"1,025.60"},"EUR","2026/1","3221","Uredski materijal i ostali materijalni rashodi","FAKULTET PROMETNIH ZNANOSTI"]
[{"v":17,"d":"17."},"UDEMY","n.p.","600 HARRISON ST.-3RD FLOOR, SAN FRANCISCO,CA 94107",39.96,"EUR","2026/1","3213","Stručno usavršavanje zaposlenika","FAKULTET PROMETNIH ZNANOSTI"]
[{"v":18,"d":"18."},"RESTORAN PERLICA","01292222702","TRG GRLO 1, KLIS",{"v":415.5,"d":"415.50"},"EUR","2026/1","3293","Reprezentacija","FAKULTET PROMETNIH ZNANOSTI"]
[{"v":19,"d":"19."},"TEDI POSLOVANJE D.O.O.","05614216244","AVENIJA VEČESLAVA HOLJEVCA 40, ZAGREB-SLOBOŠTINA",21.55,"EUR","2026/1","3221","Uredski materijal i ostali materijalni rashodi","FAKULTET PROMETNIH ZNANOSTI"]
[{"v":20,"d":"20."},"BEST IN PARKING D.O.O.","13111840409","TRG PETRA PRERADOVIĆA 6,, Zagreb",{"v":15,"d":"15.00"},"EUR","2026/1","3235","Zakupnine i najamnine","FAKULTET PROMETNIH ZNANOSTI"]
[{"v":21,"d":"21."},"PRESIDENT GRUPA D.O.O. HOTEL PRESIDENT SOLIN","33301430925","VARŠAVSKA 13, ZAGREB",{"v":83,"d":"83.00"},"EUR","2026/1","3211","Službena putovanja","FAKULTET PROMETNIH ZNANOSTI"]
[{"v":22,"d":"22."},"PRESIDENT GRUPA D.O.O. HOTEL PRESIDENT SOLIN","33301430925","VARŠAVSKA 13, ZAGREB",{"v":257,"d":"257.00"},"EUR","2026/1","3293","Reprezentacija","FAKULTET PROMETNIH ZNANOSTI"]
[{"v":23,"d":"23."},"HOTEL ADRIA IVKA D.O.O.","37020496783","RADNIČKA 46,, Dubrovnik",{"v":388.6,"d":"388.60"},"EUR","2026/1","3211","Službena putovanja","FAKULTET PROMETNIH ZNANOSTI"]
[{"v":24,"d":"24."},"MANOKA J.D.O.O.","57656244957","DANKOVEČKA ULICA 3, ZAGREB",24.66,"EUR","2026/1","3231","Usluge telefona, interneta, pošte i prijevoza","FAKULTET PROMETNIH ZNANOSTI"]
[{"v":25,"d":"25."},"OMNIX OBRT ZA TAXI PRIEVOZ VL.ZORAN MEĆA","59230970414","DUDOVEC 51, ZAGREB",6.52,"EUR","2026/1","3231","Usluge telefona, interneta, pošte i prijevoza","FAKULTET PROMETNIH ZNANOSTI"]
[{"v":26,"d":"26."},"KONZUM PLUS","62226620908","ZAGREB,, M. ČAVIĆA 1/A",273.71,"EUR","2026/1","3293","Reprezentacija","FAKULTET PROMETNIH ZNANOSTI"]
[{"v":27,"d":"27."},"MATIJA,OBRT ZA AUTOTAKSI PRIJEVOZ,VL.MAT","68664651542","JOSIPA KOSORA 32, DUBROVNIK",6.42,"EUR","2026/1","3231","Usluge telefona, interneta, pošte i prijevoza","FAKULTET PROMETNIH ZNANOSTI"]
[{"v":28,"d":"28."},"MILE MAKER j.d.o.o.","73570802186","STIPANOVIĆEVA ULICA 31, ZAGREB",8.99,"EUR","2026/1","3231","Usluge telefona, interneta, pošte i prijevoza","FAKULTET PROMETNIH ZNANOSTI"]
[{"v":29,"d":"29."},"RESTORAN\"TINGUL\"","78987495900","SOLINSKA 84, SPLIT",{"v":211.6,"d":"211.60"},"EUR","2026/1","3293","Reprezentacija","FAKULTET PROMETNIH ZNANOSTI"]
[{"v":30,"d":"30."},"VIP FLOTA No. 2j.d.o.o.","85786877712","RASNIČKA CESTA 80, ZAGREB",26.12,"EUR","2026/1","3231","Usluge telefona, interneta, pošte i prijevoza","FAKULTET PROMETNIH ZNANOSTI"]
[{"v":31,"d":"31."},"LUX ULAGANJA D.O.O.","90746253495","A.HEBRANGA 32, ZAGREB",{"v":3,"d":"3.00"},"EUR","2026/1","3235","Zakupnine i najamnine","FAKULTET PROMETNIH ZNANOSTI"]
[{"v":32,"d":"32."},"DOM I ENERGIJA D.O.O.","12108511265","KARLOVAČKA CESTA 62,, Zagreb",{"v":602.5,"d":"602.50"},"EUR","2026/1","3232","Usluge tekućeg i investicijskog održavanja","FAKULTET PROMETNIH ZNANOSTI"]
[{"v":33,"d":"33."},"ANKER","21016032890","BRUNE BUŠIĆA 5,, Zagreb",922.31,"EUR","2026/1","3224","Materijal i dijelovi za tekuće i investicijsko održavanje","FAKULTET PROMETNIH ZNANOSTI"]
[{"v":34,"d":"34."},"TEHNIČKI SISTEMI D.O.O.","52911977785","RASTOČKA ULICA 8A/2, ZAGREB-NOVI ZAGREB",{"v":4037.51,"d":"4,037.51"},"EUR","2026/1","3232","Usluge tekućeg i investicijskog održavanja","FAKULTET PROMETNIH ZNANOSTI"]
[{"v":35,"d":"35."},"NARODNE NOVINE D.D.","64546066176","SAVSKI GAJ XIII. PUT 6,, Zagreb",{"v":375,"d":"375.00"},"EUR","2026/1","3221","Uredski materijal i ostali materijalni rashodi","FAKULTET PROMETNIH ZNANOSTI"]
[{"v":36,"d":"36."},"AUTO GAŠPARIĆ D.O.O.","69565927095","VELIKOGORIČKA 19A,, Vukovina",{"v":2692.7,"d":"2,692.70"},"EUR","2026/1","3235","Zakupnine i najamnine","FAKULTET PROMETNIH ZNANOSTI"]
[{"v":37,"d":"37."},"HRVATSKA POŠTA D.D.","87311810356","POŠTANSKA ULICA 9, VELIKA GORICA",305.39,"EUR","2026/1","3231","Usluge telefona, interneta, pošte i prijevoza","FAKULTET PROMETNIH ZNANOSTI"]
[{"v":38,"d":"38."},"ZAGREBAČKA BANKA D.D.","92963223473","TRG BANA JELAČIĆA10, ZAGREB",{"v":1447.35,"d":"1,447.35"},"EUR","2026/1","3431","Bankarske usluge i usluge platnog prometa","FAKULTET PROMETNIH ZNANOSTI"]
[{"v":39,"d":"39."},"QUICK RESPONSE J.D.O.O.","02371100654","ZLATARSKA 16 10000, ZAGREB",{"v":800,"d":"800.00"},"EUR","2026/1","3238","Računalne usluge","FAKULTET PROMETNIH ZNANOSTI"]
[{"v":40,"d":"40."},"CROATIA OSIGURANJE D.D.","26187994862","MIRAMARSKA 22,, Zagreb",{"v":3753.61,"d":"3,753.61"},"EUR","2026/1","3292","Premije osiguranja","FAKULTET PROMETNIH ZNANOSTI"]
[{"v":41,"d":"41."},"ULIX D.O.O.","26561427801","MIRAMARSKA 26,, Zagreb",{"v":1059.68,"d":"1,059.68"},"EUR","2026/1","3211","Službena putovanja","FAKULTET PROMETNIH ZNANOSTI"]
[{"v":42,"d":"42."},"INSTITUT PROMETA I VEZA","39779737813","KUŠLANOVA 2,, Zagreb",{"v":72,"d":"72.00"},"EUR","2026/1","3234","Komunalne usluge","FAKULTET PROMETNIH ZNANOSTI"]
[{"v":43,"d":"43."},"GEOGIS D.O.O.","63046817751","II MAKSIMIRSKO NASELJE 3,, Zagreb",43.13,"EUR","2026/1","3235","Zakupnine i najamnine","FAKULTET PROMETNIH ZNANOSTI"]
[{"v":44,"d":"44."},"HEP OPSKRBA D.O.O. DISTR.PODR.ELEKTRA","63073332379","ULICA GRADA VUKOVARA 37,, Zagreb",{"v":1933.11,"d":"1,933.11"},"EUR","2026/1","3223","Energija","FAKULTET PROMETNIH ZNANOSTI"]
[{"v":45,"d":"45."},"ZAGREBAČKI ELEKTRIČNI TRAMVAJ D.O.O.","82031999604","OZALJSKA 105,, Zagreb",269.43,"EUR","2026/1","3212","Naknade za prijevoz, za rad na terenu i odvojeni život","FAKULTET PROMETNIH ZNANOSTI"]
[{"v":46,"d":"46."},"STUDENTSKI CENTAR ZGB","22597784145","SAVSKA CESTA 25,, Zagreb",{"v":8219.41,"d":"8,219.41"},"EUR","2026/1","3237","Intelektualne i osobne usluge","FAKULTET PROMETNIH ZNANOSTI"]
[{"v":47,"d":"47."},"ĆURIĆ JOZO-ZAGREB BRUSIONICA,IZR.KLJUČ.","23914078782","MAKSIMIRSKA 113A,, ZAGREB",{"v":14,"d":"14.00"},"EUR","2026/1","3224","Materijal i dijelovi za tekuće i investicijsko održavanje","FAKULTET PROMETNIH ZNANOSTI"]
[{"v":48,"d":"48."},"MEĐIMURJE - PLIN D.O.O.","29035933600","OBRTNIČKA 4, ČAKOVEC",{"v":1511,"d":"1,511.00"},"EUR","2026/1","3223","Energija","FAKULTET PROMETNIH ZNANOSTI"]
[{"v":49,"d":"49."},"LINKS D.O.O.","32614011568","DANKOVEČKA 5,, Zagreb",479.99,"EUR","2026/1","4222","Komunikacijska oprema","FAKULTET PROMETNIH ZNANOSTI"]
[{"v":50,"d":"50."},"CVJETNI STUDIO AMELIJA","40032380689","MATICE HRVATSKE 7, POŽEGA",{"v":180,"d":"180.00"},"EUR","2026/1","3299","Ostali nespomenuti rashodi poslovanja","FAKULTET PROMETNIH ZNANOSTI"]
[{"v":51,"d":"51."},"STUDIOARS","40587360933","DALMATINSKIH BRIGADA 24B,, MATULJI",{"v":1250,"d":"1,250.00"},"EUR","2026/1","3221","Uredski materijal i ostali materijalni rashodi","FAKULTET PROMETNIH ZNANOSTI"]
[{"v":52,"d":"52."},"Ustanova za zdravstvenu skrb OptimaMed","40946431457","Gotalovečka 2 ZAGREB, ZAGREB",39.82,"EUR","2026/1","3236","Zdravstvene i veterinarske usluge","FAKULTET PROMETNIH ZNANOSTI"]
[{"v":53,"d":"53."},"M.M.BOBAN-BOBAN D.O.O.","53656152979","GAJEVA 9,, Zagreb",{"v":1725.2,"d":"1,725.20"},"EUR","2026/1","3293","Reprezentacija","FAKULTET PROMETNIH ZNANOSTI"]
[{"v":54,"d":"54."},"ODRAZ - ODRŽIVI RAZVOJ ZAJEDNICE, UDRUGA","54656708838","LJ. POSAVSKOG 2/4, ZAGREB",{"v":4000,"d":"4,000.00"},"EUR","2026/1","3233","Usluge promidžbe i informiranja","FAKULTET PROMETNIH ZNANOSTI"]
[{"v":55,"d":"55."},"DAROJKOVIĆ PROMET D.O.O.","62063700215","SAJMIŠNA 15, DUGO SELO",{"v":300,"d":"300.00"},"EUR","2026/1","3239","Ostale usluge","FAKULTET PROMETNIH ZNANOSTI"]
[{"v":56,"d":"56."},null,"n.p.","n.p.",{"$f":"575461.92+41336.35","v":{"v":616798.27,"d":"616,798.27"}},"EUR","2026/1","3111","Plaće za redovan rad","FAKULTET PROMETNIH ZNANOSTI"]
[{"v":57,"d":"57."},null,"n.p.","n.p.",156.52,"EUR","2026/1","3114","Plaće za posebne uvjete rada","FAKULTET PROMETNIH ZNANOSTI"]
[{"v":58,"d":"58."},null,"n.p.","n.p.",{"v":2156.7,"d":"2,156.70"},"EUR","2026/1","3131","Doprinosi za mirovinsko osiguranje za staž s povećanim trajanjem","FAKULTET PROMETNIH ZNANOSTI"]
[{"v":59,"d":"59."},null,"n.p.","n.p.",{"$f":"93800.2+6523.02","v":{"v":100323.22,"d":"100,323.22"}},"EUR","2026/1","3132","Doprinosi za obvezno zdravstveno osiguranje","FAKULTET PROMETNIH ZNANOSTI"]
[{"v":60,"d":"60."},null,"n.p.","n.p.",{"$f":"9498.57+1575.55-38.49","v":{"v":11035.63,"d":"11,035.63"}},"EUR","2026/1","3212","Naknade za prijevoz, za rad na terenu i odvojeni život","FAKULTET PROMETNIH ZNANOSTI"]
[{"v":61,"d":"61."},null,"n.p.","n.p.",{"$f":"27919.41+780.96","v":{"v":28700.37,"d":"28,700.37"}},"EUR","2026/1","3121","Ostali rashodi za zaposlene","FAKULTET PROMETNIH ZNANOSTI"]
[{"v":62,"d":"62."},"STUDENTSKI CENTAR U SLAV.BRODU","11218961403","PETRA SVAČIĆA 2/A, Slavonski Brod",190.58,"EUR","2026/1","3237","Intelektualne i osobne usluge","FAKULTET PROMETNIH ZNANOSTI"]
[{"v":63,"d":"63."},"SILUETA LINE J.D.O.O.","13940248109","ZRINSKO-FRANKOPANSKA 62, SPLIT",15.27,"EUR","2026/1","3231","Usluge telefona, interneta, pošte i prijevoza","FAKULTET PROMETNIH ZNANOSTI"]
[{"v":64,"d":"64."},"ZLATNA KRPA","43340681792","RADNIČKA CESTA 80, ZAGREB",5.96,"EUR","2026/1","3231","Usluge telefona, interneta, pošte i prijevoza","FAKULTET PROMETNIH ZNANOSTI"]
[{"v":65,"d":"65."},"AG EXPRESS DELIVERY","43488991934","ŽITNJAK BOGDANI 18, ZAGREB",5.95,"EUR","2026/1","3231","Usluge telefona, interneta, pošte i prijevoza","FAKULTET PROMETNIH ZNANOSTI"]
[{"$f":"ROW(A66)","v":{"v":66,"d":"66."}},"STUDENTSKI CENTAR PULA","63288148995","ULICA SV.MIHOVILA 3,, Pula",572.82,"EUR","2026/1","3237","Intelektualne i osobne usluge","FAKULTET PROMETNIH ZNANOSTI"]
[{"v":67,"d":"67."},"STUDENTSKI CENTAR VARAŽDIN","64945507350","JULIJA MARLIĆA BB,, Varaždin",300.91,"EUR","2026/1","3237","Intelektualne i osobne usluge","FAKULTET PROMETNIH ZNANOSTI"]
[{"v":68,"d":"68."},"HAKA line, OBRT ZA PRIJEVOZ I USLUGE","68547761576","BUKOVEČKI KRČ 13, ZAGREB",4.93,"EUR","2026/1","3231","Usluge telefona, interneta, pošte i prijevoza","FAKULTET PROMETNIH ZNANOSTI"]
[{"v":69,"d":"69."},"SELEKTA-PRIMA D.O.O.","68651120977","I.TRNAVA 49 P.P.132,,, ZAGREB",{"v":1351.25,"d":"1,351.25"},"EUR","2026/1","3232","Usluge tekućeg i investicijskog održavanja","FAKULTET PROMETNIH ZNANOSTI"]
[{"v":70,"d":"70."},"BOLT- VATRENI PROMET J.D.O.O.","88437295553","ULICA ANTUNA MIHANOVIĆA 1, DRNIŠ",5.95,"EUR","2026/1","3231","Usluge telefona, interneta, pošte i prijevoza","FAKULTET PROMETNIH ZNANOSTI"]
[{"v":71,"d":"71."},"AUTO 10314 J.D.O.O.","96177236009","SRDOČI 58, DONJA VOĆA",8.37,"EUR","2026/1","3231","Usluge telefona, interneta, pošte i prijevoza","FAKULTET PROMETNIH ZNANOSTI"]
[{"v":72,"d":"72."},"KONICA MINOLTA POSLOVNA RJEŠENJA D.O.O.","31697259786","HORVATOVA 82,, Zagreb",{"v":3730.74,"d":"3,730.74"},"EUR","2026/1","3235","Zakupnine i najamnine","FAKULTET PROMETNIH ZNANOSTI"]
[{"v":73,"d":"73."},"HOTEL JADRAN","66859264899","VLAŠKA 50,, Zagreb",{"v":1100,"d":"1,100.00"},"EUR","2026/1","3235","Zakupnine i najamnine","FAKULTET PROMETNIH ZNANOSTI"]
[{"v":74,"d":"74."},"HOTEL JADRAN","66859264899","VLAŠKA 50,, Zagreb",{"v":1410,"d":"1,410.00"},"EUR","2026/1","3293","Reprezentacija","FAKULTET PROMETNIH ZNANOSTI"]
[{"v":75,"d":"75."},"STUDENTSKI CENTAR U RIJECI","87500773013","RADMILE MATEJČIĆ 5,, Rijeka",290.87,"EUR","2026/1","3237","Intelektualne i osobne usluge","FAKULTET PROMETNIH ZNANOSTI"]
[{"v":76,"d":"76."},"JAVNI BILJEŽNIK JANA PAJIĆ","88568483451","ŠKRLČEVA 39, ZAGREB",8.83,"EUR","2026/1","3295","Pristojbe i naknade","FAKULTET PROMETNIH ZNANOSTI"]
[{"v":77,"d":"77."},"ALFA SECURITY & DEMINING D.O.O.","15417598684","Grdanjci 1 /1 Grdanjci, Grdanjci",124.43,"EUR","2026/1","3239","Ostale usluge","FAKULTET PROMETNIH ZNANOSTI"]
[{"v":78,"d":"78."},"AGENCIJA ZA KOMERCIJALNU DJELATNOST","58843087891","SAVSKA CESTA 31,, Zagreb",{"v":35.1,"d":"35.10"},"EUR","2026/1","3239","Ostale usluge","FAKULTET PROMETNIH ZNANOSTI"]
[{"v":79,"d":"79."},"ADAM STANČIĆ","GDPR","GDPR",{"v":68.8,"d":"68.80"},"EUR","2026/1","3237","Intelektualne i osobne usluge","FAKULTET PROMETNIH ZNANOSTI"]
[{"v":80,"d":"80."},"BRANKO SUK","GDPR","GDPR",{"v":3102.45,"d":"3,102.45"},"EUR","2026/1","3237","Intelektualne i osobne usluge","FAKULTET PROMETNIH ZNANOSTI"]
[{"v":81,"d":"81."},"DARKO VIROVAC","GDPR","GDPR",148.35,"EUR","2026/1","3237","Intelektualne i osobne usluge","FAKULTET PROMETNIH ZNANOSTI"]
[{"v":82,"d":"82."},"DRAGAN GLAVAŠ","GDPR","GDPR",121.48,"EUR","2026/1","3237","Intelektualne i osobne usluge","FAKULTET PROMETNIH ZNANOSTI"]
[{"v":83,"d":"83."},"DRAGOSLAV DRAGOJLOVIĆ","GDPR","GDPR",{"v":17.2,"d":"17.20"},"EUR","2026/1","3237","Intelektualne i osobne usluge","FAKULTET PROMETNIH ZNANOSTI"]
[{"v":84,"d":"84."},"DUBRAVKO TOMAŠIĆ","GDPR","GDPR",{"v":197.8,"d":"197.80"},"EUR","2026/1","3237","Intelektualne i osobne usluge","FAKULTET PROMETNIH ZNANOSTI"]
[{"v":85,"d":"85."},"DUKIĆ TIN","GDPR","GDPR",{"v":1827.5,"d":"1,827.50"},"EUR","2026/1","3237","Intelektualne i osobne usluge","FAKULTET PROMETNIH ZNANOSTI"]
[{"v":86,"d":"86."},"DUNJA PLAČKO VRŠNAK","GDPR","GDPR",251.55,"EUR","2026/1","3237","Intelektualne i osobne usluge","FAKULTET PROMETNIH ZNANOSTI"]
[{"v":87,"d":"87."},"GORAN VOJKOVIĆ","GDPR","GDPR",695.19,"EUR","2026/1","3237","Intelektualne i osobne usluge","FAKULTET PROMETNIH ZNANOSTI"]
[{"v":88,"d":"88."},"HRVOJE IVANKOVIĆ","GDPR","GDPR",{"v":68.8,"d":"68.80"},"EUR","2026/1","3237","Intelektualne i osobne usluge","FAKULTET PROMETNIH ZNANOSTI"]
[{"v":89,"d":"89."},"IVANA PROTUĐER","GDPR","GDPR",{"v":309.6,"d":"309.60"},"EUR","2026/1","3237","Intelektualne i osobne usluge","FAKULTET PROMETNIH ZNANOSTI"]
[{"v":90,"d":"90."},"IVICA PIVAR","GDPR","GDPR",{"v":206.4,"d":"206.40"},"EUR","2026/1","3237","Intelektualne i osobne usluge","FAKULTET PROMETNIH ZNANOSTI"]
[{"v":91,"d":"91."},"IVO CVJETKOVIĆ","GDPR","GDPR",{"v":34.4,"d":"34.40"},"EUR","2026/1","3237","Intelektualne i osobne usluge","FAKULTET PROMETNIH ZNANOSTI"]
[{"v":92,"d":"92."},"KREŠIMIR SUPANC","GDPR","GDPR",{"v":645,"d":"645.00"},"EUR","2026/1","3237","Intelektualne i osobne usluge","FAKULTET PROMETNIH ZNANOSTI"]
[{"v":93,"d":"93."},"KUDELJAN NIKOLA","GDPR","GDPR",{"v":2354.17,"d":"2,354.17"},"EUR","2026/1","3237","Intelektualne i osobne usluge","FAKULTET PROMETNIH ZNANOSTI"]
[{"v":94,"d":"94."},"MAJA TELIŠMAN PRTENJAK","GDPR","GDPR",99.98,"EUR","2026/1","3237","Intelektualne i osobne usluge","FAKULTET PROMETNIH ZNANOSTI"]
[{"v":95,"d":"95."},"MISLAV TOGONAL","GDPR","GDPR",{"v":1551.23,"d":"1,551.23"},"EUR","2026/1","3237","Intelektualne i osobne usluge","FAKULTET PROMETNIH ZNANOSTI"]
[{"v":96,"d":"96."},"ONIX sp.z o.o.","n.p.","ZAKRZEWO 32, SIEDLEC",346.73,"EUR","2026/1","3211","Službena putovanja","FAKULTET PROMETNIH ZNANOSTI"]
[{"v":97,"d":"97."},"ROMAN ROMANOVIĆ","GDPR","GDPR",174.15,"EUR","2026/1","3237","Intelektualne i osobne usluge","FAKULTET PROMETNIH ZNANOSTI"]
[{"v":98,"d":"98."},"SANJA CANJEK-ANDROIĆ","GDPR","GDPR",{"v":322.5,"d":"322.50"},"EUR","2026/1","3237","Intelektualne i osobne usluge","FAKULTET PROMETNIH ZNANOSTI"]
[{"v":99,"d":"99."},"SINAN ALISPAHIĆ","GDPR","GDPR",{"v":645,"d":"645.00"},"EUR","2026/1","3237","Intelektualne i osobne usluge","FAKULTET PROMETNIH ZNANOSTI"]
[{"v":100,"d":"100."},"SINIŠA KOVAČIĆ","GDPR","GDPR",346.15,"EUR","2026/1","3237","Intelektualne i osobne usluge","FAKULTET PROMETNIH ZNANOSTI"]
[{"v":101,"d":"101."},"TOMISLAV PEREGLIN","GDPR","GDPR",{"v":167.7,"d":"167.70"},"EUR","2026/1","3237","Intelektualne i osobne usluge","FAKULTET PROMETNIH ZNANOSTI"]
[{"v":102,"d":"102."},"ŽARKO BOŠNJAK","GDPR","GDPR",{"v":645,"d":"645.00"},"EUR","2026/1","3237","Intelektualne i osobne usluge","FAKULTET PROMETNIH ZNANOSTI"]
[{"v":103,"d":"103."},"ŽELJKO OREŠKI","GDPR","GDPR",377.33,"EUR","2026/1","3237","Intelektualne i osobne usluge","FAKULTET PROMETNIH ZNANOSTI"]
[{"v":104,"d":"104."},"GRADSKO STAMBENO KOM.GOSP. GSKG","03744272526","SAVSKA CESTA 1,, Zagreb",628.65,"EUR","2026/1","3234","Komunalne usluge","FAKULTET PROMETNIH ZNANOSTI"]
[{"v":105,"d":"105."},"TELEBIT D.O.O.","17148988537","LIČKA 35,, Zagreb",{"v":3480,"d":"3,480.00"},"EUR","2026/1","4221","Uredska oprema i namještaj","FAKULTET PROMETNIH ZNANOSTI"]
[{"v":106,"d":"106."},"LIMES PLUS D.O.O.","57560191883","HEINZELOVA 60,, Zagreb",437.83,"EUR","2026/1","4221","Uredska oprema i namještaj","FAKULTET PROMETNIH ZNANOSTI"]
[{"v":107,"d":"107."},"NODEFUSION D.O.O.","60378406301","PODBREŽJE X. 9 A, Zagreb",{"v":1186.43,"d":"1,186.43"},"EUR","2026/1","3235","Zakupnine i najamnine","FAKULTET PROMETNIH ZNANOSTI"]
[{"v":108,"d":"108."},"NODEFUSION D.O.O.","60378406301","PODBREŽJE X. 9 A, Zagreb",995.43,"EUR","2026/1","3238","Računalne usluge","FAKULTET PROMETNIH ZNANOSTI"]
[{"v":109,"d":"109."},"SINONIM D.O.O.","60695956664","PRINCA EUGENA SAVOJSKOG 51,, Osijek",{"v":2289.38,"d":"2,289.38"},"EUR","2026/1","3237","Intelektualne i osobne usluge","FAKULTET PROMETNIH ZNANOSTI"]
[{"v":110,"d":"110."},"GRAD ZAGREB - GRADSKI URED ZA OBNOVU, IZGRADNJU, PROSTORNO UREĐENJE, GRADITELJSTVO I KOMUNALNE POSLOVE","61817894937","TRG STJEPANA RADIĆA 1,, Zagreb",409.11,"EUR","2026/1","3234","Komunalne usluge","FAKULTET PROMETNIH ZNANOSTI"]
[{"v":111,"d":"111."},"C.I.A.K.AUTO D.O.O.","62595301902","GORNJOSTUPNIČKA 96,, Gornji Stupnik",18.48,"EUR","2026/1","3221","Uredski materijal i ostali materijalni rashodi","FAKULTET PROMETNIH ZNANOSTI"]
[{"v":112,"d":"112."},"NARODNE NOVINE D.D.","64546066176","SAVSKI GAJ XIII. PUT 6,, Zagreb",718.85,"EUR","2026/1","3233","Usluge promidžbe i informiranja","FAKULTET PROMETNIH ZNANOSTI"]
[{"v":113,"d":"113."},"LEXPERA D.O.O.","79506290597","ZAGREB,, TUŠKANOVA 37",121.88,"EUR","2026/1","3221","Uredski materijal i ostali materijalni rashodi","FAKULTET PROMETNIH ZNANOSTI"]
[{"v":114,"d":"114."},"REZO ZVONIMIR","82279099452","KNEZA DOMAGOJA 17,, Dubrovnik",{"v":253.7,"d":"253.70"},"EUR","2026/1","3237","Intelektualne i osobne usluge","FAKULTET PROMETNIH ZNANOSTI"]
[{"v":115,"d":"115."},"SPECIJALNA BOLNICA AGRAM ZAGREB","89718348767","TRNJANSKA CESTA 108, ZAGREB",{"v":220,"d":"220.00"},"EUR","2026/1","3236","Zdravstvene i veterinarske usluge","FAKULTET PROMETNIH ZNANOSTI"]
[{"v":116,"d":"116."},"MDPI","n.p.","ST.ALBAN-ANLAGE 66,, BASEL",654.57,"EUR","2026/1","3213","Stručno usavršavanje zaposlenika","FAKULTET PROMETNIH ZNANOSTI"]
[{"v":117,"d":"117."},"AZINUS","20015695423","LUČKO,, Puškarićeva 92",{"v":550.6,"d":"550.60"},"EUR","2026/1","3238","Računalne usluge","FAKULTET PROMETNIH ZNANOSTI"]
[{"v":118,"d":"118."},"T.M.D.TRAVEL D.O.O.","41349475869","HORVAĆANSKA 27,, Zagreb",{"v":5285,"d":"5,285.00"},"EUR","2026/1","3211","Službena putovanja","FAKULTET PROMETNIH ZNANOSTI"]
[{"v":119,"d":"119."},"HRAVATSKI TELEKOM d.d.","81793146560","Radnička cesta 21, ZAGREB",554.84,"EUR","2026/1","3231","Usluge telefona, interneta, pošte i prijevoza","FAKULTET PROMETNIH ZNANOSTI"]
[{"v":120,"d":"120."},"EXELLISO D.O.O.","94275387625","SVETICE 24, ZAGREB",617.31,"EUR","2026/1","3221","Uredski materijal i ostali materijalni rashodi","FAKULTET PROMETNIH ZNANOSTI"]
[{"v":121,"d":"121."},"SVIJET MEDIJA","08622180689","TRG DRAGE IBLERA 10, Zagreb",299.96,"EUR","2026/1","3221","Uredski materijal i ostali materijalni rashodi","FAKULTET PROMETNIH ZNANOSTI"]
[{"v":122,"d":"122."},"EVENT DRIVE J.D.O.O.","81688804491","SAVSKA CESTA 41, ZAGREB",8.94,"EUR","2026/1","3231","Usluge telefona, interneta, pošte i prijevoza","FAKULTET PROMETNIH ZNANOSTI"]
[{"v":123,"d":"123."},"VELIKI IGRAČ J.D.O.O.","97589896906","ULICA ANTE JAKŠIĆA 53, ZAGREB",3.95,"EUR","2026/1","3231","Usluge telefona, interneta, pošte i prijevoza","FAKULTET PROMETNIH ZNANOSTI"]
[{"v":124,"d":"124."},"ZEL-COS D.O.O.","07306591551","NOVA CESTA 166,, Zagreb",148.44,"EUR","2026/1","3232","Usluge tekućeg i investicijskog održavanja","FAKULTET PROMETNIH ZNANOSTI"]
[{"v":125,"d":"125."},"AUTOBUSNI PRIJEVOZ D.O.O.","15263066301","GOSPODARSKA 56, VARAŽDIN",25.36,"EUR","2026/1","3241","Naknade troškova osobama izvan radnog odnosa","FAKULTET PROMETNIH ZNANOSTI"]
[{"v":126,"d":"126."},"GLAZER d.o.o.","55529176295","Letovanička 20 Zagreb, Zagreb",{"v":375,"d":"375.00"},"EUR","2026/1","3221","Uredski materijal i ostali materijalni rashodi","FAKULTET PROMETNIH ZNANOSTI"]
[{"v":127,"d":"127."},"GLAZER d.o.o.","55529176295","Letovanička 20 Zagreb, Zagreb",{"v":3000,"d":"3,000.00"},"EUR","2026/1","3227","Službena, radna i zaštitna odjeća i obuća","FAKULTET PROMETNIH ZNANOSTI"]
[{"v":128,"d":"128."},"ŠUMO OPSKRBA D.O.O.","85775843111","DONJE SVETICE 12,, Zagreb",{"v":11.5,"d":"11.50"},"EUR","2026/1","3224","Materijal i dijelovi za tekuće i investicijsko održavanje","FAKULTET PROMETNIH ZNANOSTI"]
[{"v":129,"d":"129."},"ACQUISITUM MAGNUM D.O.O. ZA TRGOVINU I USLUGE","89836623071","PRILAZ VLADISLAVA BRAJKOVIĆA 4, Zagreb",579.99,"EUR","2026/1","3221","Uredski materijal i ostali materijalni rashodi","FAKULTET PROMETNIH ZNANOSTI"]
[{"$f":"ROW(A130)","v":{"v":130,"d":"130."}},"QUAHWA D.O.O.","96516152119","ULICA NIKOLE TESLE 9/1, ZAGREB",{"v":321,"d":"321.00"},"EUR","2026/1","3293","Reprezentacija","FAKULTET PROMETNIH ZNANOSTI"]
[{"v":131,"d":"131."},null,"n.p.","n.p.",{"v":10440.01,"d":"10,440.01"},"EUR","2026/1","3211","Službena putovanja","FAKULTET PROMETNIH ZNANOSTI"]
[{"v":132,"d":"132."},null,"n.p.","n.p.",{"v":92.5,"d":"92.50"},"EUR","2026/1","3214","Ostale naknade troškova zaposlenima","FAKULTET PROMETNIH ZNANOSTI"]
[{"v":133,"d":"133."},"DRVO DIZAJN PARKETI","GDPR","GDPR",{"v":1586,"d":"1,586.00"},"EUR","2026/1","3232","Usluge tekućeg i investicijskog održavanja","FAKULTET PROMETNIH ZNANOSTI"]
[{"v":134,"d":"134."},"TECVIA MEDIA GMBH","n.p.","ASCHAUER STRASSE 30, MUENCHEN",{"v":566.7,"d":"566.70"},"EUR","2026/1","3221","Uredski materijal i ostali materijalni rashodi","FAKULTET PROMETNIH ZNANOSTI"]
[{"v":135,"d":"135."},"DIMNJAČARSKA OBRTNIČKA ZADRUGA","01254445043","SARAJEVSKA 60,, Zagreb",281.91,"EUR","2026/1","3232","Usluge tekućeg i investicijskog održavanja","FAKULTET PROMETNIH ZNANOSTI"]
[{"v":136,"d":"136."},"DUBROVNIK SUN","60174672203","BOKELJSKA 26,, Dubrovnik",{"v":1350,"d":"1,350.00"},"EUR","2026/1","3213","Stručno usavršavanje zaposlenika","FAKULTET PROMETNIH ZNANOSTI"]
[{"v":137,"d":"137."},"CONCORDA D.O.O.","60694472023","ČAZMANSKA 6, ZAGREB",538.44,"EUR","2026/1","3211","Službena putovanja","FAKULTET PROMETNIH ZNANOSTI"]
[{"v":138,"d":"138."},"ERGOVISION D.O.O.","61423865425","SAMOBORSKA CESTA 56, ZAGREB",{"v":159.9,"d":"159.90"},"EUR","2026/1","4221","Uredska oprema i namještaj","FAKULTET PROMETNIH ZNANOSTI"]
[{"v":139,"d":"139."},"EUROPEAN TRANSPORT SAFTEY COUNCIL","n.p.","AV DES CELTES 20, BRUSSELS",{"v":2500,"d":"2,500.00"},"EUR","2026/1","3294","Članarine i norme","FAKULTET PROMETNIH ZNANOSTI"]
[{"v":140,"d":"140."},"HOTEL BISHOPS ARMS SSRS GRAND HOTEL SAVOY AB","n.p.","BOX 880, MALMÖ",{"v":1018.62,"d":"1,018.62"},"EUR","2026/1","3211","Službena putovanja","FAKULTET PROMETNIH ZNANOSTI"]
[{"v":141,"d":"141."},"STUDIOARS","40587360933","DALMATINSKIH BRIGADA 24B,, MATULJI",{"v":1481.25,"d":"1,481.25"},"EUR","2026/1","3235","Zakupnine i najamnine","FAKULTET PROMETNIH ZNANOSTI"]
[{"v":142,"d":"142."},"PEVEX D.D. PEVEX D.D.","73660371074","SAVSKA CESTA 84,, Sesvete",23.99,"EUR","2026/1","3293","Reprezentacija","FAKULTET PROMETNIH ZNANOSTI"]
[{"v":143,"d":"143."},"VODOOPSKRBA I ODVODNJA D.O.O. Odjel pravnih i kadrovskih poslova","83416546499","FOLNEGOVIĆEVA 1,, Zagreb",286.82,"EUR","2026/1","3234","Komunalne usluge","FAKULTET PROMETNIH ZNANOSTI"]
[{"v":144,"d":"144."},"NACIONALNA I SVEUČILIŠNA KNJIŽNICA","84838770814","HRVATSKE BRATSKE ZAJEDNICE 4,, Zagreb",{"v":185.8,"d":"185.80"},"EUR","2026/1","3235","Zakupnine i najamnine","FAKULTET PROMETNIH ZNANOSTI"]
[{"v":145,"d":"145."},"FILOZOFSKI FAKULTET","90633715804","IVANA LUČIĆA 3,, Zagreb",{"v":615,"d":"615.00"},"EUR","2026/1","3213","Stručno usavršavanje zaposlenika","FAKULTET PROMETNIH ZNANOSTI"]
[{"v":146,"d":"146."},"INTERNET MALL D.O.O.","91380369083","ULICA KNEZA BRANIMIRA 28,, Zagreb-Dubrava",11.12,"EUR","2026/1","3293","Reprezentacija","FAKULTET PROMETNIH ZNANOSTI"]
[{"v":147,"d":"147."},"VRUTAK D.O.O.","95092888930","VODOVODNA 20 A,, Zagreb",34.36,"EUR","2026/1","3293","Reprezentacija","FAKULTET PROMETNIH ZNANOSTI"]
[{"v":148,"d":"148."},"ALFA SIGURNOST D.O.O.","47785989863","AVENIJA VEĆESLAVA HOLJEVCA 20, ZAGREB-NOVI ZAGREB",546.25,"EUR","2026/1","3232","Usluge tekućeg i investicijskog održavanja","FAKULTET PROMETNIH ZNANOSTI"]
[{"v":149,"d":"149."},"SPINOR CONSULTING D.O.O","65889142554","ULICA ĐUKE BEGOVIĆA 9, ZAGREB",{"v":12375,"d":"12,375.00"},"EUR","2026/1","3237","Intelektualne i osobne usluge","FAKULTET PROMETNIH ZNANOSTI"]
[{"v":150,"d":"150."},"PETROL D.O.O.","75550985023","OREŠKOVIĆEVA 6/H,, Zagreb",{"v":1113.78,"d":"1,113.78"},"EUR","2026/1","3223","Energija","FAKULTET PROMETNIH ZNANOSTI"]
[{"v":151,"d":"151."},"MEĐUNARODNA ZRAČNA LUKA ZAGREB","79446233150","ULICA RUDOLFA FIZIRA,, Velika Gorica",{"v":755.6,"d":"755.60"},"EUR","2026/1","3235","Zakupnine i najamnine","FAKULTET PROMETNIH ZNANOSTI"]
[{"v":152,"d":"152."},"BABIĆ & BRBOROVIĆ","83470094564","ULICA KRALJA ZVONIMIRA 66,, Zagreb",{"v":1875,"d":"1,875.00"},"EUR","2026/1","3237","Intelektualne i osobne usluge","FAKULTET PROMETNIH ZNANOSTI"]
[{"v":153,"d":"153."},"SONABILIS D.O.O.","83795461036","IVANA LUČIĆA 2A, ZAGREB",{"v":9826.5,"d":"9,826.50"},"EUR","2026/1","3299","Ostali nespomenuti rashodi poslovanja","FAKULTET PROMETNIH ZNANOSTI"]
[{"v":154,"d":"154."},"HETZNER ONLINE AG","n.p.",",, Germany",75.73,"EUR","2026/1","3221","Uredski materijal i ostali materijalni rashodi","FAKULTET PROMETNIH ZNANOSTI"]
[{"v":155,"d":"155."},"INTERNATIONAL COMPUTING AND ENGINEERING","n.p.","FLAT 8 11/F WANG FAI IND BLDG,29 LUK HOP ST",523.82,"EUR","2026/1","3213","Stručno usavršavanje zaposlenika","FAKULTET PROMETNIH ZNANOSTI"]
[{"v":156,"d":"156."},"MAKROMIKRO GRUPA D.O.O.","50467974870","VUKOMERIČKA ULICA 6, Zagreb",144.45,"EUR","2026/1","3221","Uredski materijal i ostali materijalni rashodi","FAKULTET PROMETNIH ZNANOSTI"]
[{"v":157,"d":"157."},"MAKROMIKRO GRUPA D.O.O.","50467974870","VUKOMERIČKA ULICA 6, Zagreb",{"v":219,"d":"219.00"},"EUR","2026/1","4221","Uredska oprema i namještaj","FAKULTET PROMETNIH ZNANOSTI"]
[{"v":158,"d":"158."},"PAGAR D.O.O. RESTORAN BOTA ŠARE","60966016226","ZVONIMIROVA 124,, Zagreb",{"v":131,"d":"131.00"},"EUR","2026/1","3293","Reprezentacija","FAKULTET PROMETNIH ZNANOSTI"]
[{"v":159,"d":"159."},"ZAGREBAČKI HODLING d.o.o. PODRUŽNICA ČISTOĆA","85584865987","RADNIČKA CESTA 82,, Zagreb",{"v":1009.73,"d":"1,009.73"},"EUR","2026/1","3234","Komunalne usluge","FAKULTET PROMETNIH ZNANOSTI"]
[{"v":160,"d":"160."},"STUDENTSKI CENTAR KARLOVAC","58335400167","F.K.FRANKOPANA 5, KARLOVAC",257.43,"EUR","2026/1","3237","Intelektualne i osobne usluge","FAKULTET PROMETNIH ZNANOSTI"]
[{"v":161,"d":"161."},"ACQUISITUM MAGNUM D.O.O. ZA TRGOVINU I USLUGE","89836623071","PRILAZ VLADISLAVA BRAJKOVIĆA 4, Zagreb",{"v":1560,"d":"1,560.00"},"EUR","2026/1","4221","Uredska oprema i namještaj","FAKULTET PROMETNIH ZNANOSTI"]
[{"v":162,"d":"162."},"REFUNDACIJA ZAPOSLENICI","n.p.","n.p.",{"v":6.4,"d":"6.40"},"EUR","2026/1","3235","Zakupnine i najamnine","FAKULTET PROMETNIH ZNANOSTI"]
[{"v":163,"d":"163."},"Fakulteta za gradbeništvo, prometno inže","n.p.","SMETANOVA 17, MARIBOR",390.88,"EUR","2026/1","3237","Intelektualne i osobne usluge","FAKULTET PROMETNIH ZNANOSTI"]
[{"v":164,"d":"164."},"ISPRING","n.p.","Bergkullantie 14,, KIRKKONUMMI",{"v":20285,"d":"20,285.00"},"EUR","2026/1","3235","Zakupnine i najamnine","FAKULTET PROMETNIH ZNANOSTI"]
[{"v":165,"d":"165."},"MSG GLOBAL SOLUTIONS AG thurgauerstrasse","n.p.","THURGAUERSTRASSE 39, ZUERICH",{"v":2825,"d":"2,825.00"},"EUR","2026/1","4225","Instrumenti i uređaji","FAKULTET PROMETNIH ZNANOSTI"]
[{"v":166,"d":"166."},"VODOVOD ZADAR","89406825003","ŠPIRE BRUSINE 17,, Zadar",11.16,"EUR","2026/1","3234","Komunalne usluge","FAKULTET PROMETNIH ZNANOSTI"]
[{"v":167,"d":"167."},"VODOVOD ZADAR","89406825003","ŠPIRE BRUSINE 17,, Zadar",{"v":0.1,"d":"0.10"},"EUR","2026/1","3433","Zatezne kamate","FAKULTET PROMETNIH ZNANOSTI"]
[{"v":168,"d":"168."},"SMIT-COMMERCE D.O.O.","95243482140","GORNJOSTUPNIČKA 9B,, Gornji Stupnik",74.55,"EUR","2026/1","3224","Materijal i dijelovi za tekuće i investicijsko održavanje","FAKULTET PROMETNIH ZNANOSTI"]
[{"v":169,"d":"169."},"INNAVIGATE, OBRT ZA SAVJETOVANJE I USLUGE, VL. PETRA GRGASOVIĆ","00026192682","NOVA CESTA 5, ZAGREB",{"v":1500,"d":"1,500.00"},"EUR","2026/1","3237","Intelektualne i osobne usluge","FAKULTET PROMETNIH ZNANOSTI"]
[{"v":170,"d":"170."},"TELECARE D.O.O.","35315379989","BREZJE SAMOBORSKO, SIGET  I/25, Sveta Nedjelja",58.06,"EUR","2026/1","3232","Usluge tekućeg i investicijskog održavanja","FAKULTET PROMETNIH ZNANOSTI"]
[{"v":171,"d":"171."},"ZAGRIA D.O.O.\"IQ CENTAR\"","85805332078","SLAVONSKA AVENIJA 26/9,, Zagreb",119.81,"EUR","2026/1","3221","Uredski materijal i ostali materijalni rashodi","FAKULTET PROMETNIH ZNANOSTI"]
[{"v":172,"d":"172."},"REFUNDACIJA ZAPOSLENICI","n.p.","n.p.",{"v":20,"d":"20.00"},"EUR","2026/1","3294","Članarine i norme","FAKULTET PROMETNIH ZNANOSTI"]
[{"v":173,"d":"173."},"ALENA LETINA","GDPR","GDPR",{"v":322.5,"d":"322.50"},"EUR","2026/1","3237","Intelektualne i osobne usluge","FAKULTET PROMETNIH ZNANOSTI"]
[{"v":174,"d":"174."},"ANA PAVELIĆ TREMAC","GDPR","GDPR",126.91,"EUR","2026/1","3237","Intelektualne i osobne usluge","FAKULTET PROMETNIH ZNANOSTI"]
[{"v":175,"d":"175."},"ANTE BARUN","GDPR","GDPR",131.86,"EUR","2026/1","3237","Intelektualne i osobne usluge","FAKULTET PROMETNIH ZNANOSTI"]
[{"v":176,"d":"176."},"AURORA VALINČIĆ","GDPR","GDPR",130.16,"EUR","2026/1","3237","Intelektualne i osobne usluge","FAKULTET PROMETNIH ZNANOSTI"]
[{"v":177,"d":"177."},"BOSILJKA DOLEŽAL","GDPR","GDPR",131.86,"EUR","2026/1","3237","Intelektualne i osobne usluge","FAKULTET PROMETNIH ZNANOSTI"]
[{"v":178,"d":"178."},"BOŽE RADOŠ","GDPR","GDPR",126.91,"EUR","2026/1","3237","Intelektualne i osobne usluge","FAKULTET PROMETNIH ZNANOSTI"]
[{"v":179,"d":"179."},"DAMIR HAS","GDPR","GDPR",126.91,"EUR","2026/1","3237","Intelektualne i osobne usluge","FAKULTET PROMETNIH ZNANOSTI"]
[{"v":180,"d":"180."},"DIJANA JOLIĆ","GDPR","GDPR",126.91,"EUR","2026/1","3237","Intelektualne i osobne usluge","FAKULTET PROMETNIH ZNANOSTI"]
[{"v":181,"d":"181."},"ELKOTEX D.O.O.","n.p.","MAGISTROVA ULICA 1, LJUBLJANA",88.64,"EUR","2026/1","3221","Uredski materijal i ostali materijalni rashodi","FAKULTET PROMETNIH ZNANOSTI"]
[{"v":182,"d":"182."},"INES DODIG","GDPR","GDPR",126.91,"EUR","2026/1","3237","Intelektualne i osobne usluge","FAKULTET PROMETNIH ZNANOSTI"]
[{"v":183,"d":"183."},"JANA ŠARINIĆ","GDPR","GDPR",{"v":537.5,"d":"537.50"},"EUR","2026/1","3237","Intelektualne i osobne usluge","FAKULTET PROMETNIH ZNANOSTI"]
[{"v":184,"d":"184."},"JURAJ KOSTELAC","GDPR","GDPR",128.51,"EUR","2026/1","3237","Intelektualne i osobne usluge","FAKULTET PROMETNIH ZNANOSTI"]
[{"v":185,"d":"185."},"KREŠIMIR STIPANOVIĆ","GDPR","GDPR",131.86,"EUR","2026/1","3237","Intelektualne i osobne usluge","FAKULTET PROMETNIH ZNANOSTI"]
[{"v":186,"d":"186."},"MAJA AHAC","GDPR","GDPR",{"v":537.5,"d":"537.50"},"EUR","2026/1","3237","Intelektualne i osobne usluge","FAKULTET PROMETNIH ZNANOSTI"]
[{"v":187,"d":"187."},"MARA MOSTARAC","GDPR","GDPR",131.86,"EUR","2026/1","3237","Intelektualne i osobne usluge","FAKULTET PROMETNIH ZNANOSTI"]
[{"v":188,"d":"188."},"MARIJA BOŠNJAK","GDPR","GDPR",129.33,"EUR","2026/1","3237","Intelektualne i osobne usluge","FAKULTET PROMETNIH ZNANOSTI"]
[{"v":189,"d":"189."},"MIROSLAV VUJAKLIJA","GDPR","GDPR",126.91,"EUR","2026/1","3237","Intelektualne i osobne usluge","FAKULTET PROMETNIH ZNANOSTI"]
[{"v":190,"d":"190."},"NENAD TUŠKANAC","GDPR","GDPR",129.51,"EUR","2026/1","3237","Intelektualne i osobne usluge","FAKULTET PROMETNIH ZNANOSTI"]
[{"v":191,"d":"191."},"NEVENKA PERICA","GDPR","GDPR",131.86,"EUR","2026/1","3237","Intelektualne i osobne usluge","FAKULTET PROMETNIH ZNANOSTI"]
[{"v":192,"d":"192."},"PETAR JOLIĆ","GDPR","GDPR",131.86,"EUR","2026/1","3237","Intelektualne i osobne usluge","FAKULTET PROMETNIH ZNANOSTI"]
[{"v":193,"d":"193."},"Rogić Kristijan","GDPR","GDPR",{"v":1200,"d":"1,200.00"},"EUR","2026/1","3237","Intelektualne i osobne usluge","FAKULTET PROMETNIH ZNANOSTI"]
[{"$f":"ROW(A194)","v":{"v":194,"d":"194."}},"SANJA ŽIVKO","GDPR","GDPR",131.86,"EUR","2026/1","3237","Intelektualne i osobne usluge","FAKULTET PROMETNIH ZNANOSTI"]
[{"v":195,"d":"195."},"SELMA MLIVIĆ SRŠAN","GDPR","GDPR",126.91,"EUR","2026/1","3237","Intelektualne i osobne usluge","FAKULTET PROMETNIH ZNANOSTI"]
[{"v":196,"d":"196."},"SILVIJA PRŠA","GDPR","GDPR",{"v":1045.14,"d":"1,045.14"},"EUR","2026/1","3237","Intelektualne i osobne usluge","FAKULTET PROMETNIH ZNANOSTI"]
[{"v":197,"d":"197."},"SLAVEN GAŠPAROVIĆ","GDPR","GDPR",{"v":537.5,"d":"537.50"},"EUR","2026/1","3237","Intelektualne i osobne usluge","FAKULTET PROMETNIH ZNANOSTI"]
[{"v":198,"d":"198."},"STANKOVIĆ RATKO","GDPR","GDPR",{"v":3000,"d":"3,000.00"},"EUR","2026/1","3237","Intelektualne i osobne usluge","FAKULTET PROMETNIH ZNANOSTI"]
[{"v":199,"d":"199."},"SUZANA ĆURIĆ","GDPR","GDPR",131.86,"EUR","2026/1","3237","Intelektualne i osobne usluge","FAKULTET PROMETNIH ZNANOSTI"]
[{"v":200,"d":"200."},"VERA PRETEGIANI","GDPR","GDPR",130.16,"EUR","2026/1","3237","Intelektualne i osobne usluge","FAKULTET PROMETNIH ZNANOSTI"]
[{"v":201,"d":"201."},"ZLATKO GABRIĆ","GDPR","GDPR",131.86,"EUR","2026/1","3237","Intelektualne i osobne usluge","FAKULTET PROMETNIH ZNANOSTI"]
[{"v":202,"d":"202."},"ŽELJKA DEMŠE","GDPR","GDPR",126.91,"EUR","2026/1","3237","Intelektualne i osobne usluge","FAKULTET PROMETNIH ZNANOSTI"]
[{"v":203,"d":"203."},"ŽELJKO ŠIMIĆ","GDPR","GDPR",126.91,"EUR","2026/1","3237","Intelektualne i osobne usluge","FAKULTET PROMETNIH ZNANOSTI"]
[{"v":204,"d":"204."},"SIGNAL-M","13268276185","A.BAUERA 13,, Zagreb",{"v":100,"d":"100.00"},"EUR","2026/1","3239","Ostale usluge","FAKULTET PROMETNIH ZNANOSTI"]
[{"v":205,"d":"205."},"POMORSI FAKULTET U SPLITU POMORSKI FAKULTET","24624257529","RUĐERA BOŠKOVIĆA 37,, Split",{"v":586.7,"d":"586.70"},"EUR","2026/1","3241","Naknade troškova osobama izvan radnog odnosa","FAKULTET PROMETNIH ZNANOSTI"]
[{"v":206,"d":"206."},"A1 HRVATSKA D.O.O.","29524210204","VRTNI PUT 1,, Zagreb",10.38,"EUR","2026/1","3231","Usluge telefona, interneta, pošte i prijevoza","FAKULTET PROMETNIH ZNANOSTI"]
[{"v":207,"d":"207."},"LACONIQ D.O.O.","38976470104","ULICA GRADA VUKOVARA 23, ZAGREB",888.89,"EUR","2026/1","3233","Usluge promidžbe i informiranja","FAKULTET PROMETNIH ZNANOSTI"]
[{"v":208,"d":"208."},"INFOLAB E.I. D.O.O.","41823200992","SOKOLGRADSKA 28,, Zagreb",501.25,"EUR","2026/1","3232","Usluge tekućeg i investicijskog održavanja","FAKULTET PROMETNIH ZNANOSTI"]
[{"v":209,"d":"209."},"GRENKE GC RENTING CROATIA D.O.O.","44115087893","AV.VEĆESLAVA HOLJEVCA 40,, Zagreb",358.65,"EUR","2026/1","3235","Zakupnine i najamnine","FAKULTET PROMETNIH ZNANOSTI"]
[{"v":210,"d":"210."},"RESTORAN RUSTICA I","50648623695","DRAGUTINA MANDLA 1,, Zagreb",{"v":138,"d":"138.00"},"EUR","2026/1","3293","Reprezentacija","FAKULTET PROMETNIH ZNANOSTI"]
[{"v":211,"d":"211."},"ZLATNI OCEAN","52620978036","TRG DRAGE IBLERA 5,, Zagreb",181.63,"EUR","2026/1","3221","Uredski materijal i ostali materijalni rashodi","FAKULTET PROMETNIH ZNANOSTI"]
[{"v":212,"d":"212."},"BENEFIT SYSTEMS D.O.O.","57845277445","HEINZELOVA 44, Zagreb",{"v":1139.5,"d":"1,139.50"},"EUR","2026/1","3239","Ostale usluge","FAKULTET PROMETNIH ZNANOSTI"]
[{"v":213,"d":"213."},"KONTO D.O.O","59143170280","ZRINSKA 46, POŽEGA",{"v":1400,"d":"1,400.00"},"EUR","2026/1","3238","Računalne usluge","FAKULTET PROMETNIH ZNANOSTI"]
[{"v":214,"d":"214."},"PRIJEVOZ HARAPIN J.D.O.O.","59572003084","ULICA VIKTORA KOVAČIĆA 3, ZAGREB",{"v":9.9,"d":"9.90"},"EUR","2026/1","3231","Usluge telefona, interneta, pošte i prijevoza","FAKULTET PROMETNIH ZNANOSTI"]
[{"v":215,"d":"215."},"HRT HRVATSKA RADIO TELEVIZIJA","68419124305","PRISAVLJE 3,, Zagreb",{"v":53.1,"d":"53.10"},"EUR","2026/1","3231","Usluge telefona, interneta, pošte i prijevoza","FAKULTET PROMETNIH ZNANOSTI"]
[{"v":216,"d":"216."},"TELEMACH HRVATSKA D.O.O.","70133616033","JOSIPA MAROHNIĆA 1, ZAGREB",709.71,"EUR","2026/1","3231","Usluge telefona, interneta, pošte i prijevoza","FAKULTET PROMETNIH ZNANOSTI"]
[{"v":217,"d":"217."},"RESTORAN VINODOL","75508711169","TESLINA 10,, Zagreb",{"v":263.4,"d":"263.40"},"EUR","2026/1","3293","Reprezentacija","FAKULTET PROMETNIH ZNANOSTI"]
[{"v":218,"d":"218."},"ČISTOĆA ZADAR","84923155727","S.RADIĆA 33,, Zadar",17.59,"EUR","2026/1","3234","Komunalne usluge","FAKULTET PROMETNIH ZNANOSTI"]
[{"v":219,"d":"219."},"MEDICPRO D.O.O.","87488264639","CARINARSKI ODVOJAK 4, ČAKOVEC",{"v":70.2,"d":"70.20"},"EUR","2026/1","3221","Uredski materijal i ostali materijalni rashodi","FAKULTET PROMETNIH ZNANOSTI"]
[]
["UKUPNO:",{"$nulls":3},{"$f":"SUBTOTAL(9,E7:E226)","v":{"v":982191.0199999997,"d":"982,191.02"}}]
[]
["Napomena: podatak o iznosu isplate na kontu \"3237 Intelektualne i osobne usluge\", osim neto iznosa (i PDV-a ukoliko je osoba obveznik PDV-a) koji je isplaćen fizičkoj osobi, sadržava uplaćeni porez na dohodak te doprinose za mirovinsko i obvezno zdravstveno osiguranje."]

{"sheet":"Sheet2","index":1,"n_rows":0,"n_cols":0,"rows_kept":0}